[Event "94th FRA-ch Veterans 2019"]
[Site "Chartres"]
[Date "2019.08.17"]
[Round "1.1"]
[White "Vareille, Francois"]
[Black "Shakessi, Hossein"]
[Result "1-0"]
[ECO "B06"]
[WhiteElo "2423"]
[BlackElo "1609"]
[Annotator "NA"]
[PlyCount "43"]
[EventDate "2019.08.17"]
[EventType "swiss"]
[EventCountry "FRA"]
[SourceTitle "playchess.com"]
[Source "ChessBase"]
[SourceQuality "1"]
[TimeControl "40/5400+30:1800+30"]

1. d4 {[%emt 0:00:00]} g6 {[%emt 0:00:00]} 2. e4 {[%emt 0:00:06]} Bg7 {[%emt 0:00:00]} 3. c3 {[%emt 0:00:26]} c5 {[%emt 0:00:24]} 4. dxc5 {[%emt 0:00:21]} Qc7 {[%emt 0:00:26]} 5. Be3 {[%emt 0:00:51]} Nf6 {[%emt 0:01:30]} 6. f3 {[%emt 0:00:31]} O-O {[%emt 0:01:15]} 7. Qd2 {[%emt 0:00:40]} Nc6 {[%emt 0:01:14]} 8. c4 {[%emt 0:07:38]} b6 {[%emt 0:07:25]} 9. cxb6 {[%emt 0:01:08]} axb6 {[%emt 0:00:23]} 10. Nc3 {[%emt 0:02:54]} Ba6 {[%emt 0:08:59]} 11. Rc1 {[%emt 0:06:07]} e6 {[%emt 0:03:29]} 12. Nh3 {[%emt 0:02:20]} d5 {[%emt 0:01:15]} 13. cxd5 {[%emt 0:02:58]} exd5 {[%emt 0:01:27]} 14. Nxd5 {[%emt 0:02:43]} Qe5 {[%emt 0:04:43]} 15. Bxa6 {[%emt 0:00:52]} Nxd5 {[%emt 0:03:29]} 16. exd5 {[%emt 0:03:01]} Nb4 {[%emt 0:03:01]} 17. Bc4 {[%emt 0:03:38]} Rfd8 {[%emt 0:05:47]} 18. Nf4 {[%emt 0:07:15]} b5 {[%emt 0:05:06]} 19. Bb3 {[%emt 0:06:29]} Bh6 {[%emt 0:04:09]} 20. Kf2 {[%emt 0:02:03]} Qxb2 {[%emt 0:07:22]} 21. Qxb2 {[%emt 0:00:18]} Bxf4 {[%emt 0:00:31]} 22. Rhd1 {[%emt 0:48:41]} 1-0

[Event "94th FRA-ch Veterans 2019"]
[Site "Chartres"]
[Date "2019.08.17"]
[Round "1.2"]
[White "Renault, Jean-Pierre"]
[Black "Goldenberg, Richard"]
[Result "0-1"]
[ECO "A41"]
[WhiteElo "1607"]
[BlackElo "2219"]
[Annotator "NA"]
[PlyCount "70"]
[EventDate "2019.08.17"]
[EventType "swiss"]
[EventCountry "FRA"]
[SourceTitle "playchess.com"]
[Source "ChessBase"]
[SourceQuality "1"]
[TimeControl "40/5400+30:1800+30"]

1. d4 {[%emt 0:09:54]} g6 {[%emt 0:38:28]} 2. c4 {[%emt 0:00:00]} Bg7 {[%emt 0:00:01]} 3. e4 {[%emt 0:00:00]} d6 {[%emt 0:00:20]} 4. Be3 {[%emt 0:00:00]} c5 {[%emt 0:03:08]} 5. Ne2 {[%emt 0:00:00]} Nf6 {[%emt 0:01:15]} 6. f3 {[%emt 0:00:00]} b6 {[%emt 0:07:48]} 7. Nbc3 {[%emt 0:00:00]} O-O {[%emt 0:00:36]} 8. g3 {[%emt 0:00:00]} Nc6 {[%emt 0:00:51]} 9. Bg2 {[%emt 0:00:13]} e5 {[%emt 0:01:35]} 10. d5 {[%emt 0:00:12]} Nd4 {[%emt 0:00:42]} 11. O-O {[%emt 0:01:03]} a6 {[%emt 0:01:39]} 12. Qd2 {[%emt 0:02:55]} b5 {[%emt 0:02:28]} 13. b3 {[%emt 0:10:41]} Rb8 {[%emt 0:01:29]} 14. Bh6 {[%emt 0:02:57]} bxc4 {[%emt 0:04:17]} 15. bxc4 {[%emt 0:00:25]} Qa5 {[%emt 0:02:11]} 16. Bxg7 {[%emt 0:02:32]} Kxg7 {[%emt 0:01:10]} 17. Rfd1 {[%emt 0:17:27]} Bd7 {[%emt 0:00:43]} 18. Nxd4 {[%emt 0:05:06]} cxd4 {[%emt 0:00:25]} 19. Ne2 {[%emt 0:00:30]} Qc5 {[%emt 0:01:01]} 20. Kh1 {[%emt 0:03:08]} Rb4 {[%emt 0:01:45]} 21. Rab1 {[%emt 0:05:01]} Rfb8 {[%emt 0:01:17]} 22. Rxb4 {[%emt 0:05:34]} Rxb4 {[%emt 0:00:30]} 23. Rc1 {[%emt 0:02:30]} Rxc4 {[%emt 0:01:50]} 24. Rxc4 {[%emt 0:00:42]} Qxc4 {[%emt 0:00:02]} 25. g4 {[%emt 0:07:03]} Bb5 {[%emt 0:02:37]} 26. Bf1 {[%emt 0:00:21]} h6 {[%emt 0:03:41]} 27. h4 {[%emt 0:00:36]} Qa4 {[%emt 0:05:56]} 28. Ng3 {[%emt 0:07:22]} Qa3 {[%emt 0:01:41]} 29. Bg2 {[%emt 0:02:07]} Qc3 {[%emt 0:02:04]} 30. Qf2 {[%emt 0:05:54]} Qc1+ {[%emt 0:03:40]} 31. Kh2 {[%emt 0:00:21]} Qf4 {[%emt 0:00:37]} 32. Kg1 {[%emt 0:00:42]} h5 {[%emt 0:02:52]} 33. gxh5 {[%emt 0:02:09]} Nxh5 {[%emt 0:00:23]} 34. Nxh5+ {[%emt 0:01:16]} gxh5 {[%emt 0:00:01]} 35. Qe1 {[%emt 0:02:57]} d3 {[%emt 0:01:22]} 0-1

[Event "94th FRA-ch Veterans 2019"]
[Site "Chartres"]
[Date "2019.08.17"]
[Round "1.3"]
[White "Large, Laurent"]
[Black "Barat, Jacques"]
[Result "1-0"]
[ECO "C55"]
[WhiteElo "2183"]
[BlackElo "1599"]
[Annotator "NA"]
[PlyCount "85"]
[EventDate "2019.08.17"]
[EventType "swiss"]
[EventCountry "FRA"]
[SourceTitle "playchess.com"]
[Source "ChessBase"]
[SourceQuality "1"]
[TimeControl "40/5400+30:1800+30"]

1. e4 {[%emt 0:00:00]} e5 {[%emt 0:00:49]} 2. Bc4 {[%emt 0:00:48]} Nf6 {[%emt 0:01:13]} 3. d3 {[%emt 0:00:08]} Be7 {[%emt 0:01:56]} 4. Nf3 {[%emt 0:00:28]} d6 {[%emt 0:00:54]} 5. O-O {[%emt 0:00:59]} O-O {[%emt 0:00:30]} 6. h3 {[%emt 0:01:25]} h6 {[%emt 0:01:07]} 7. c3 {[%emt 0:00:18]} Nc6 {[%emt 0:03:11]} 8. b4 {[%emt 0:01:29]} a6 {[%emt 0:01:23]} 9. Re1 {[%emt 0:03:55]} b5 {[%emt 0:07:52]} 10. Bb3 {[%emt 0:01:33]} Bb7 {[%emt 0:02:43]} 11. a3 {[%emt 0:02:09]} a5 {[%emt 0:01:15]} 12. Bb2 {[%emt 0:00:50]} Kh7 {[%emt 0:03:36]} 13. Nbd2 {[%emt 0:00:34]} Qd7 {[%emt 0:06:15]} 14. Bc2 {[%emt 0:03:14]} Kh8 {[%emt 0:02:23]} 15. Nf1 {[%emt 0:03:06]} Nh7 {[%emt 0:07:27]} 16. Ng3 {[%emt 0:01:47]} Ng5 {[%emt 0:02:32]} 17. Nf5 {[%emt 0:04:55]} a4 {[%emt 0:02:20]} 18. d4 {[%emt 0:02:30]} Nxf3+ {[%emt 0:03:33]} 19. Qxf3 {[%emt 0:00:16]} Rae8 {[%emt 0:04:16]} 20. Rad1 {[%emt 0:14:09]} f6 {[%emt 0:05:02]} 21. Bd3 {[%emt 0:14:15]} Ba6 {[%emt 0:04:13]} 22. Qg4 {[%emt 0:06:20]} Bd8 {[%emt 0:05:49]} 23. Bb1 {[%emt 0:00:39]} Bc8 {[%emt 0:03:26]} 24. Ba2 {[%emt 0:01:19]} g5 {[%emt 0:03:27]} 25. Nxh6 {[%emt 0:07:00]} Qxg4 {[%emt 0:02:29]} 26. hxg4 {[%emt 0:01:12]} Kg7 {[%emt 0:03:15]} 27. Nf5+ {[%emt 0:00:11]} Kg6 {[%emt 0:00:26]} 28. f3 {[%emt 0:03:43]} Rh8 {[%emt 0:02:26]} 29. Kf2 {[%emt 0:02:37]} Rh7 {[%emt 0:00:53]} 30. Rh1 {[%emt 0:00:39]} Reh8 {[%emt 0:00:07]} 31. Rxh7 {[%emt 0:00:17]} Rxh7 {[%emt 0:00:06]} 32. Rc1 {[%emt 0:02:02]} Ne7 {[%emt 0:04:31]} 33. dxe5 {[%emt 0:00:42]} fxe5 {[%emt 0:00:58]} 34. Rd1 {[%emt 0:02:12]} Nxf5 {[%emt 0:01:23]} 35. gxf5+ {[%emt 0:00:14]} Kf6 {[%emt 0:00:27]} 36. Bc1 {[%emt 0:03:02]} Bb7 {[%emt 0:04:39]} 37. c4 {[%emt 0:03:13]} g4 {[%emt 0:01:05]} 38. cxb5 {[%emt 0:01:30]} gxf3 {[%emt 0:00:27]} 39. Kxf3 {[%emt 0:01:04]} Rh4 {[%emt 0:00:31]} 40. Bd5 {[%emt 0:02:47]} Bc8 {[%emt 0:01:10]} 41. Be3 {[%emt 0:33:20]} Bd7 {[%emt 0:33:54]} 42. Bc6 {[%emt 0:01:22]} Bc8 {[%emt 0:00:54]} 43. b6 {[%emt 0:00:44]} 1-0

[Event "94th FRA-ch Veterans 2019"]
[Site "Chartres"]
[Date "2019.08.17"]
[Round "1.4"]
[White "Berne, Christian"]
[Black "Daurelle, Herve"]
[Result "0-1"]
[ECO "D02"]
[WhiteElo "1599"]
[BlackElo "2179"]
[Annotator "NA"]
[PlyCount "98"]
[EventDate "2019.08.17"]
[EventType "swiss"]
[EventCountry "FRA"]
[SourceTitle "playchess.com"]
[Source "ChessBase"]
[SourceQuality "1"]
[TimeControl "40/5400+30:1800+30"]

1. d4 {[%emt 0:00:00]} Nf6 {[%emt 0:00:00]} 2. Bf4 {[%emt 0:00:00]} c5 {[%emt 0:00:50]} 3. c3 {[%emt 0:00:07]} e6 {[%emt 0:01:56]} 4. e3 {[%emt 0:00:38]} d5 {[%emt 0:00:33]} 5. Nf3 {[%emt 0:00:24]} Bd6 {[%emt 0:00:47]} 6. Bg3 {[%emt 0:01:01]} Qc7 {[%emt 0:04:51]} 7. Bd3 {[%emt 0:01:05]} Nbd7 {[%emt 0:00:30]} 8. Na3 {[%emt 0:07:40]} a6 {[%emt 0:02:01]} 9. Nc2 {[%emt 0:01:37]} e5 {[%emt 0:05:57]} 10. dxe5 {[%emt 0:02:18]} Nxe5 {[%emt 0:00:27]} 11. Nxe5 {[%emt 0:01:40]} Bxe5 {[%emt 0:00:07]} 12. f4 {[%emt 0:06:04]} Bd6 {[%emt 0:01:08]} 13. O-O {[%emt 0:00:09]} Bg4 {[%emt 0:21:12]} 14. Be2 {[%emt 0:01:55]} Bxe2 {[%emt 0:02:49]} 15. Qxe2 {[%emt 0:00:03]} O-O {[%emt 0:01:26]} 16. Rad1 {[%emt 0:04:59]} Rad8 {[%emt 0:00:43]} 17. Ne1 {[%emt 0:00:37]} Rfe8 {[%emt 0:01:28]} 18. Qf3 {[%emt 0:03:17]} Be7 {[%emt 0:14:14]} 19. Bh4 {[%emt 0:02:59]} Ne4 {[%emt 0:01:17]} 20. Bxe7 {[%emt 0:00:29]} Qxe7 {[%emt 0:00:43]} 21. g3 {[%emt 0:03:12]} Nf6 {[%emt 0:01:37]} 22. Ng2 {[%emt 0:00:29]} Rd7 {[%emt 0:03:59]} 23. Rfe1 {[%emt 0:01:24]} Qd8 {[%emt 0:00:41]} 24. Re2 {[%emt 0:05:25]} h6 {[%emt 0:01:46]} 25. Ne1 {[%emt 0:01:20]} b6 {[%emt 0:06:26]} 26. Nd3 {[%emt 0:01:26]} Rd6 {[%emt 0:03:45]} 27. h4 {[%emt 0:06:27]} Ne4 {[%emt 0:01:56]} 28. Ne5 {[%emt 0:02:55]} Nxg3 {[%emt 0:04:11]} 29. Qxg3 {[%emt 0:01:30]} Rxe5 {[%emt 0:00:05]} 30. fxe5 {[%emt 0:02:36]} Rg6 {[%emt 0:00:04]} 31. Qxg6 {[%emt 0:01:47]} fxg6 {[%emt 0:00:05]} 32. Red2 {[%emt 0:00:52]} Qxh4 {[%emt 0:01:09]} 33. Rxd5 {[%emt 0:00:06]} Qg3+ {[%emt 0:00:32]} 34. Kh1 {[%emt 0:01:16]} Qh3+ {[%emt 0:00:26]} 35. Kg1 {[%emt 0:00:23]} Qxe3+ {[%emt 0:00:10]} 36. Kg2 {[%emt 0:00:23]} g5 {[%emt 0:05:22]} 37. Rd8+ {[%emt 0:01:17]} Kh7 {[%emt 0:00:11]} 38. R1d5 {[%emt 0:00:20]} g4 {[%emt 0:00:29]} 39. R8d6 {[%emt 0:00:59]} Qf3+ {[%emt 0:00:39]} 40. Kg1 {[%emt 0:00:19]} g3 {[%emt 0:00:24]} 41. Rd2 {[%emt 0:32:31]} Qe3+ {[%emt 0:31:59]} 42. Kg2 {[%emt 0:00:04]} Qxe5 {[%emt 0:00:30]} 43. R6d3 {[%emt 0:00:11]} Qe1 {[%emt 0:03:52]} 44. c4 {[%emt 0:03:55]} h5 {[%emt 0:03:24]} 45. Rd5 {[%emt 0:00:26]} h4 {[%emt 0:01:11]} 46. Kh3 {[%emt 0:00:58]} Qh1+ {[%emt 0:04:05]} 47. Kg4 {[%emt 0:00:03]} g2 {[%emt 0:00:00]} 48. Rh5+ {[%emt 0:00:00]} Kg8 {[%emt 0:00:00]} 49. Rd8+ {[%emt 0:00:00]} Kf7 {[%emt 0:00:00]} 0-1

[Event "94th FRA-ch Veterans 2019"]
[Site "Chartres"]
[Date "2019.08.17"]
[Round "1.5"]
[White "Dussol, Pierre"]
[Black "Vantet, Pascale"]
[Result "1-0"]
[ECO "C41"]
[WhiteElo "2102"]
[BlackElo "1589"]
[Annotator "NA"]
[PlyCount "29"]
[EventDate "2019.08.17"]
[EventType "swiss"]
[EventCountry "FRA"]
[SourceTitle "playchess.com"]
[Source "ChessBase"]
[SourceQuality "1"]
[TimeControl "40/5400+30:1800+30"]

1. e4 {[%emt 0:00:00]} e5 {[%emt 0:00:00]} 2. Nf3 {[%emt 0:00:08]} d6 {[%emt 0:00:19]} 3. d4 {[%emt 0:00:35]} Bg4 {[%emt 0:01:32]} 4. dxe5 {[%emt 0:00:30]} Bxf3 {[%emt 0:00:21]} 5. Qxf3 {[%emt 0:00:12]} dxe5 {[%emt 0:00:21]} 6. Bc4 {[%emt 0:00:21]} Qf6 {[%emt 0:00:55]} 7. Qb3 {[%emt 0:03:02]} b6 {[%emt 0:01:22]} 8. Nc3 {[%emt 0:05:11]} Ne7 {[%emt 0:03:04]} 9. Be3 {[%emt 0:01:49]} Nd7 {[%emt 0:01:04]} 10. O-O-O {[%emt 0:01:02]} c6 {[%emt 0:01:45]} 11. h4 {[%emt 0:13:53]} h6 {[%emt 0:03:10]} 12. g4 {[%emt 0:04:25]} g5 {[%emt 0:01:42]} 13. hxg5 {[%emt 0:00:37]} hxg5 {[%emt 0:01:52]} 14. Rxh8 {[%emt 0:00:21]} Qxh8 {[%emt 0:01:07]} 15. Bxf7+ {[%emt 0:00:14]} 1-0

[Event "94th FRA-ch Veterans 2019"]
[Site "Chartres"]
[Date "2019.08.17"]
[Round "1.6"]
[White "Duval, Michel"]
[Black "Ribaud-Chevrey, Philippe"]
[Result "0-1"]
[ECO "B84"]
[WhiteElo "1585"]
[BlackElo "2038"]
[Annotator "NA"]
[PlyCount "90"]
[EventDate "2019.08.17"]
[EventType "swiss"]
[EventCountry "FRA"]
[SourceTitle "playchess.com"]
[Source "ChessBase"]
[SourceQuality "1"]
[TimeControl "40/5400+30:1800+30"]

1. e4 {[%emt 0:00:00]} c5 {[%emt 0:00:06]} 2. Nf3 {[%emt 0:00:00]} e6 {[%emt 0:00:16]} 3. d4 {[%emt 0:00:50]} cxd4 {[%emt 0:00:09]} 4. Nxd4 {[%emt 0:00:12]} a6 {[%emt 0:00:14]} 5. Nc3 {[%emt 0:04:17]} Qc7 {[%emt 0:01:27]} 6. a3 {[%emt 0:02:23]} Nf6 {[%emt 0:05:28]} 7. Be2 {[%emt 0:02:22]} d6 {[%emt 0:03:58]} 8. O-O {[%emt 0:00:57]} Be7 {[%emt 0:01:41]} 9. Be3 {[%emt 0:02:17]} b5 {[%emt 0:02:45]} 10. Bf3 {[%emt 0:00:41]} Bb7 {[%emt 0:00:29]} 11. Re1 {[%emt 0:02:23]} Nbd7 {[%emt 0:03:55]} 12. Rc1 {[%emt 0:08:40]} Ne5 {[%emt 0:07:07]} 13. Bd2 {[%emt 0:03:02]} O-O {[%emt 0:01:13]} 14. h3 {[%emt 0:07:25]} Rac8 {[%emt 0:03:46]} 15. Nb1 {[%emt 0:07:08]} Rfd8 {[%emt 0:00:51]} 16. Bc3 {[%emt 0:02:07]} d5 {[%emt 0:02:12]} 17. exd5 {[%emt 0:02:06]} Nxf3+ {[%emt 0:02:32]} 18. Nxf3 {[%emt 0:00:52]} Bxd5 {[%emt 0:04:59]} 19. Qe2 {[%emt 0:02:27]} Bc4 {[%emt 0:07:03]} 20. Qe3 {[%emt 0:06:18]} Nd5 {[%emt 0:06:55]} 21. Qe5 {[%emt 0:01:06]} Nxc3 {[%emt 0:00:33]} 22. Qxc7 {[%emt 0:00:09]} Ne2+ {[%emt 0:01:03]} 23. Rxe2 {[%emt 0:01:39]} Rxc7 {[%emt 0:00:09]} 24. Rd2 {[%emt 0:42:39]} Rdc8 {[%emt 0:01:41]} 25. c3 {[%emt 0:00:00]} Bf6 {[%emt 0:00:56]} 26. Re1 {[%emt 0:00:00]} Bd5 {[%emt 0:02:15]} 27. Ne5 {[%emt 0:00:00]} Rb8 {[%emt 0:09:33]} 28. Ng4 {[%emt 0:00:00]} Be7 {[%emt 0:01:00]} 29. Ne3 {[%emt 0:00:00]} Bb3 {[%emt 0:02:43]} 30. Rde2 {[%emt 0:00:00]} e5 {[%emt 0:01:25]} 31. Ng4 {[%emt 0:00:00]} f6 {[%emt 0:00:20]} 32. Nd2 {[%emt 0:00:00]} Bf7 {[%emt 0:01:35]} 33. Ne3 {[%emt 0:00:00]} Rd8 {[%emt 0:01:40]} 34. Nf3 {[%emt 0:00:00]} Rcd7 {[%emt 0:02:33]} 35. Kf1 {[%emt 0:00:00]} Bc5 {[%emt 0:01:58]} 36. Kg1 {[%emt 0:00:00]} g6 {[%emt 0:02:16]} 37. Kh2 {[%emt 0:00:00]} e4 {[%emt 0:02:44]} 38. Ng1 {[%emt 0:00:00]} f5 {[%emt 0:01:11]} 39. f3 {[%emt 0:01:30]} Re8 {[%emt 0:06:18]} 40. f4 {[%emt 0:02:12]} Red8 {[%emt 0:00:57]} 41. g3 {[%emt 0:31:25]} Rd2 {[%emt 0:30:39]} 42. Nc2 {[%emt 0:01:17]} Bc4 {[%emt 0:00:53]} 43. Nd4 {[%emt 0:00:00]} Bxd4 {[%emt 0:10:02]} 44. cxd4 {[%emt 0:00:00]} Bxe2 {[%emt 0:00:00]} 45. Rxe2 {[%emt 0:00:00]} R8xd4 {[%emt 0:00:00]} 0-1

[Event "94th FRA-ch Veterans 2019"]
[Site "Chartres"]
[Date "2019.08.18"]
[Round "2.1"]
[White "Riols, Jacques"]
[Black "Vareille, Francois"]
[Result "0-1"]
[ECO "B34"]
[WhiteElo "1803"]
[BlackElo "2423"]
[Annotator "ChessBase"]
[PlyCount "50"]
[EventDate "2019.08.17"]
[EventType "swiss"]
[EventCountry "FRA"]
[SourceTitle "playchess.com"]
[Source "ChessBase"]
[SourceQuality "1"]
[TimeControl "40/5400+30:1800+30"]

1. e4 {[%emt 0:00:00]} c5 {[%emt 0:00:00]} 2. Nf3 {[%emt 0:00:00]} g6 {[%emt 0:00:00]} 3. d4 {[%emt 0:01:54]} cxd4 {[%emt 0:00:06]} 4. c3 {[%emt 0:00:33]} Bg7 {[%emt 0:01:09]} 5. Nxd4 {[%emt 0:04:30]} Nc6 {[%emt 0:04:17]} 6. Be3 {[%emt 0:00:49]} Nf6 {[%emt 0:00:30]} 7. Qc2 {[%emt 0:02:54]} Ng4 {[%emt 0:03:01]} 8. Qd2 {[%emt 0:03:50]} Nxe3 {[%emt 0:00:22]} 9. fxe3 {[%emt 0:00:28]} O-O {[%emt 0:02:19]} 10. Bc4 {[%emt 0:02:56]} Qc7 {[%emt 0:01:57]} 11. Bb3 {[%emt 0:00:58]} Ne5 {[%emt 0:00:55]} 12. O-O {[%emt 0:00:52]} Ng4 {[%emt 0:01:12]} 13. Nf3 {[%emt 0:02:42]} Bh6 {[%emt 0:01:28]} 14. Qe2 {[%emt 0:06:56]} Qc5 {[%emt 0:03:48]} 15. Nd4 {[%emt 0:05:25]} d6 {[%emt 0:10:01]} 16. Na3 {[%emt 0:01:15]} Nxe3 {[%emt 0:00:53]} 17. Rxf7 {[%emt 0:01:53]} Rxf7 {[%emt 0:00:46]} 18. Qf3 {[%emt 0:03:27]} d5 {[%emt 0:00:41]} 19. Qg3 {[%emt 0:02:35]} Bf4 {[%emt 0:01:57]} 20. Qh4 {[%emt 0:02:43]} g5 {[%emt 0:00:22]} 21. Qe1 {[%emt 0:00:51]} e5 {[%emt 0:00:46]} 22. g3 {[%emt 0:53:29]} exd4 {[%emt 0:00:19]} 23. gxf4 {[%emt 0:00:00]} dxc3 {[%emt 0:00:51]} 24. Kh1 {[%emt 0:00:00]} cxb2 {[%emt 0:01:26]} 25. Rb1 {[%emt 0:00:00]} Rxf4 {[%emt 0:00:40]} 0-1

[Event "94th FRA-ch Veterans 2019"]
[Site "Chartres"]
[Date "2019.08.18"]
[Round "2.2"]
[White "Goldenberg, Richard"]
[Black "Andrieu, Philippe"]
[Result "1-0"]
[ECO "A39"]
[WhiteElo "2219"]
[BlackElo "1776"]
[Annotator "NA"]
[PlyCount "67"]
[EventDate "2019.08.17"]
[EventType "swiss"]
[EventCountry "FRA"]
[SourceTitle "playchess.com"]
[Source "ChessBase"]
[SourceQuality "1"]
[TimeControl "40/5400+30:1800+30"]

1. Nf3 {[%emt 0:00:00]} c5 {[%emt 0:00:00]} 2. c4 {[%emt 0:01:06]} g6 {[%emt 0:00:03]} 3. Nc3 {[%emt 0:00:30]} Bg7 {[%emt 0:00:13]} 4. g3 {[%emt 0:07:10]} Nc6 {[%emt 0:01:11]} 5. Bg2 {[%emt 0:00:08]} Nf6 {[%emt 0:00:31]} 6. d4 {[%emt 0:03:53]} cxd4 {[%emt 0:00:26]} 7. Nxd4 {[%emt 0:00:02]} O-O {[%emt 0:01:23]} 8. O-O {[%emt 0:00:39]} Nxd4 {[%emt 0:05:16]} 9. Qxd4 {[%emt 0:00:02]} d6 {[%emt 0:00:53]} 10. Qd3 {[%emt 0:14:36]} Nd7 {[%emt 0:04:20]} 11. b3 {[%emt 0:04:02]} Ne5 {[%emt 0:07:45] A39: Symmetrical English vs ...g6: 4 Bg2 Bg7 5 Nf3 Nf6 6 0-0 0-0 7 d4} (11... Nc5 12. Qd2 Rb8 13. Bb2 b6 14. b4 Nd7 15. Nd5 Bxb2 16. Qxb2 Bb7 17. Rfd1 e6 18. Ne3 Bxg2 19. Kxg2 Qc7 20. Qd4 {1-0 (48) Melkumyan,H (2632)-Arkell,K (2499) London 2015}) 12. Qd2 {[%emt 0:01:48]} Rb8 {[%emt 0:03:36]} 13. Bb2 {[%emt 0:02:36]} Bd7 {[%emt 0:02:52]} 14. Nd5 {[%emt 0:06:56]} Bc6 {[%emt 0:14:42]} 15. Rad1 {[%emt 0:02:06]} e6 $146 {[%emt 0:07:23]} ({Predecessor:} 15... Re8 16. Bd4 e6 17. Nc3 Bxg2 18. Kxg2 a6 19. h3 {1-0 (29) Bouton,C (2016)-Auger,B (1935) Quebec 2018}) 16. Ne3 {[%emt 0:01:08]} Bxg2 {[%emt 0:01:09]} 17. Kxg2 {[%emt 0:00:38]} Nc6 {[%emt 0:09:00]} 18. Bxg7 {[%emt 0:13:59]} Kxg7 {[%emt 0:00:13]} 19. Qxd6 {[%emt 0:00:17]} Qa5 $16 {[%emt 0:04:14]} 20. Qd2 {[%emt 0:05:28]} Qh5 {[%emt 0:02:47]} 21. Qb2+ {[%emt 0:03:42]} Kg8 {[%emt 0:00:34]} 22. h3 {[%emt 0:04:00]} e5 {[%emt 0:12:04]} 23. Ng4 {[%emt 0:02:45]} f5 {[%emt 0:08:11]} 24. Nxe5 {[%emt 0:03:03]} Nxe5 {[%emt 0:03:58]} 25. Qxe5 {[%emt 0:00:02]} Rbe8 {[%emt 0:00:59]} 26. Qd5+ {[%emt 0:00:49]} Rf7 {[%emt 0:01:08]} 27. e3 {[%emt 0:01:38]} Kg7 {[%emt 0:01:20]} 28. Rd2 {[%emt 0:02:28]} Qg5 {[%emt 0:01:03]} 29. Qd4+ {[%emt 0:00:47]} Kh6 {[%emt 0:01:37]} 30. Rfd1 {[%emt 0:02:13]} Re4 {[%emt 0:00:52]} 31. Qd8 {[%emt 0:02:34]} Qh5 {[%emt 0:00:50]} 32. Rd7 {[%emt 0:06:41]} Rxd7 {[%emt 0:00:22]} 33. Rxd7 {[%emt 0:00:50]} f4 {[%emt 0:01:10]} 34. Qf8+ {[%emt 0:00:48]} 1-0

[Event "94th FRA-ch Veterans 2019"]
[Site "Chartres"]
[Date "2019.08.18"]
[Round "2.3"]
[White "Koenig, Joel"]
[Black "Large, Laurent"]
[Result "0-1"]
[ECO "D00"]
[WhiteElo "1778"]
[BlackElo "2183"]
[Annotator "NA"]
[PlyCount "54"]
[EventDate "2019.08.17"]
[EventType "swiss"]
[EventCountry "FRA"]
[SourceTitle "playchess.com"]
[Source "ChessBase"]
[SourceQuality "1"]
[TimeControl "40/5400+30:1800+30"]

1. d4 {[%emt 0:00:00]} d5 {[%emt 0:00:00]} 2. Bf4 {[%emt 0:00:00]} e6 {[%emt 0:00:04]} 3. e3 {[%emt 0:00:13]} Bd6 {[%emt 0:00:14]} 4. Bg3 {[%emt 0:00:34]} Ne7 {[%emt 0:00:09]} 5. Bd3 {[%emt 0:00:32]} Nf5 {[%emt 0:00:10]} 6. Nd2 $11 {[%emt 0:01:41]} Nxg3 {[%emt 0:08:13]} 7. hxg3 {[%emt 0:00:18]} h6 {[%emt 0:00:14]} 8. Qg4 {[%emt 0:06:14]} Qf6 {[%emt 0:05:24]} 9. c3 {[%emt 0:01:53]} Nc6 {[%emt 0:04:24]} 10. Qh4 {[%emt 0:03:12]} g5 {[%emt 0:11:36]} 11. Qh5 {[%emt 0:05:03]} e5 {[%emt 0:01:33]} 12. dxe5 {[%emt 0:00:41]} Nxe5 {[%emt 0:00:25]} 13. Be2 {[%emt 0:00:16]} Bf5 {[%emt 0:03:47]} 14. g4 {[%emt 0:07:40]} Bg6 {[%emt 0:02:09]} 15. Qh3 {[%emt 0:00:37]} O-O-O {[%emt 0:11:44]} 16. Ngf3 {[%emt 0:04:33]} Kb8 {[%emt 0:05:00]} 17. Nxe5 {[%emt 0:03:23]} Bxe5 {[%emt 0:00:22]} 18. Bf3 {[%emt 0:08:52]} Qb6 {[%emt 0:04:38]} 19. Nb3 {[%emt 0:06:45]} c5 {[%emt 0:03:18]} 20. O-O {[%emt 0:03:14]} h5 {[%emt 0:05:53]} 21. gxh5 {[%emt 0:04:52]} f5 {[%emt 0:00:13]} 22. g4 {[%emt 0:02:10]} Bxh5 {[%emt 0:00:02]} 23. gxh5 {[%emt 0:04:29]} g4 {[%emt 0:00:31]} 24. Qh1 {[%emt 0:01:51]} gxf3 {[%emt 0:00:59]} 25. Qxf3 {[%emt 0:00:52]} Rdg8+ {[%emt 0:00:27]} 26. Kh1 {[%emt 0:01:06]} Rg5 {[%emt 0:01:03]} 27. Rg1 {[%emt 0:03:42]} Rhxh5+ {[%emt 0:01:24]} 0-1

[Event "94th FRA-ch Veterans 2019"]
[Site "Chartres"]
[Date "2019.08.18"]
[Round "2.4"]
[White "Daurelle, Herve"]
[Black "Hodot, Yves"]
[Result "1-0"]
[ECO "C06"]
[WhiteElo "2179"]
[BlackElo "1760"]
[Annotator "NA"]
[PlyCount "41"]
[EventDate "2019.08.17"]
[EventType "swiss"]
[EventCountry "FRA"]
[SourceTitle "playchess.com"]
[Source "ChessBase"]
[SourceQuality "1"]
[TimeControl "40/5400+30:1800+30"]

1. e4 {[%emt 0:00:00]} e6 {[%emt 0:00:06]} 2. d4 {[%emt 0:00:00]} d5 {[%emt 0:00:10]} 3. Nd2 {[%emt 0:00:00]} Nf6 {[%emt 0:00:25]} 4. e5 {[%emt 0:00:04]} Nfd7 {[%emt 0:00:03]} 5. c3 {[%emt 0:00:04]} c5 {[%emt 0:00:25]} 6. Bd3 {[%emt 0:00:08]} Nc6 {[%emt 0:00:32]} 7. Ne2 {[%emt 0:00:11]} cxd4 {[%emt 0:02:46]} 8. cxd4 {[%emt 0:00:05]} f6 {[%emt 0:00:25]} 9. exf6 {[%emt 0:00:08]} e5 {[%emt 0:03:57]} 10. dxe5 {[%emt 0:34:16]} Ndxe5 {[%emt 0:01:03]} 11. f7+ {[%emt 0:27:26]} Kxf7 {[%emt 0:01:48]} 12. Bb1 $11 {[%emt 0:06:51]} Bd6 {[%emt 0:08:20]} 13. O-O {[%emt 0:05:04]} Qf6 {[%emt 0:08:49]} 14. Ng3 {[%emt 0:01:30]} g6 {[%emt 0:03:56]} 15. Nde4 {[%emt 0:02:31]} Qe7 {[%emt 0:44:16]} 16. Qxd5+ {[%emt 0:01:12]} Be6 {[%emt 0:09:51]} 17. Qxd6 {[%emt 0:00:27]} Rhd8 {[%emt 0:00:55]} 18. Qxe7+ {[%emt 0:00:24]} Nxe7 {[%emt 0:02:24]} 19. Ng5+ {[%emt 0:00:13]} Kf6 {[%emt 0:03:24]} 20. N3e4+ {[%emt 0:00:12]} Kf5 {[%emt 0:02:15]} 21. Nc5+ {[%emt 0:00:51]} 1-0